[Event "Late-Titled-Tuesday-Blitz-May-14-2024"]
[Site "Chess.com"]
[Date "2024.05.14"]
[Round "2"]
[White "FabianoCaruana"]
[Black "SRob2003"]
[Result "1/2-1/2"]
[WhiteElo "3066"]
[BlackElo "2684"]
[TimeControl "180+1"]
[EndTime "14:18:37 PDT"]
[Termination "Game drawn by repetition"]

1. g3 {[%clk 0:03:00.9]} 1... d5 {[%clk 0:02:59.3]} 2. Bg2 {[%clk 0:03:01.3]}
2... Nf6 {[%clk 0:02:58.7]} 3. d3 {[%clk 0:03:01.5]} 3... c5 {[%clk 0:02:58.4]}
4. Nf3 {[%clk 0:03:01.3]} 4... e6 {[%clk 0:02:58.9]} 5. O-O {[%clk 0:03:01.8]}
5... Nc6 {[%clk 0:02:59.1]} 6. Nbd2 {[%clk 0:03:00.5]} 6... Be7 {[%clk
0:02:59.4]} 7. e4 {[%clk 0:03:00.9]} 7... Qc7 {[%clk 0:03:00]} 8. Re1 {[%clk
0:03:01.1]} 8... h6 {[%clk 0:03:00]} 9. a4 {[%clk 0:02:59]} 9... O-O {[%clk
0:02:59.7]} 10. e5 {[%clk 0:02:56.5]} 10... Nh7 {[%clk 0:02:59.5]} 11. h4 {[%clk
0:02:55.7]} 11... a6 {[%clk 0:02:56.2]} 12. Nf1 {[%clk 0:02:55.9]} 12... Rb8
{[%clk 0:02:53]} 13. N1h2 {[%clk 0:02:55.8]} 13... b5 {[%clk 0:02:53.4]} 14.
axb5 {[%clk 0:02:56.3]} 14... axb5 {[%clk 0:02:54.2]} 15. Ng4 {[%clk 0:02:56.5]}
15... Bb7 {[%clk 0:02:54.5]} 16. Bf4 {[%clk 0:02:55]} 16... Ra8 {[%clk
0:02:53.7]} 17. Qd2 {[%clk 0:02:47.8]} 17... Rxa1 {[%clk 0:02:50.8]} 18. Rxa1
{[%clk 0:02:48.7]} 18... Ra8 {[%clk 0:02:50.7]} 19. Rxa8+ {[%clk 0:02:47.8]}
19... Bxa8 {[%clk 0:02:51.6]} 20. c3 {[%clk 0:02:26.7]} 20... Qa5 {[%clk
0:02:32.2]} 21. Bxh6 {[%clk 0:01:57.2]} 21... gxh6 {[%clk 0:02:27.9]} 22. Qxh6
{[%clk 0:01:58.1]} 22... Qd8 {[%clk 0:02:24.1]} 23. Qf4 {[%clk 0:01:50.6]} 23...
b4 {[%clk 0:02:17.5]} 24. d4 {[%clk 0:01:34.3]} 24... bxc3 {[%clk 0:02:13.5]}
25. bxc3 {[%clk 0:01:35.2]} 25... cxd4 {[%clk 0:02:10.7]} 26. cxd4 {[%clk
0:01:35.4]} 26... Kg7 {[%clk 0:01:48.3]} 27. Bf1 {[%clk 0:01:20.5]} 27... Nb4
{[%clk 0:01:39.4]} 28. Nh6 {[%clk 0:01:13.9]} 28... Qe8 {[%clk 0:01:27.4]} 29.
Ng4 {[%clk 0:00:57.6]} 29... Qd8 {[%clk 0:01:22.6]} 30. Be2 {[%clk 0:00:57.4]}
30... Bb7 {[%clk 0:01:20.6]} 31. Kg2 {[%clk 0:00:51.5]} 31... Ba6 {[%clk
0:01:19.8]} 32. Bxa6 {[%clk 0:00:50.5]} 32... Nxa6 {[%clk 0:01:19.9]} 33. Nh6
{[%clk 0:00:45.4]} 33... Qe8 {[%clk 0:01:17.9]} 34. g4 {[%clk 0:00:45.6]} 34...
Nb4 {[%clk 0:00:48.1]} 35. g5 {[%clk 0:00:45.7]} 35... Nc6 {[%clk 0:00:38.7]}
36. Ng4 {[%clk 0:00:43.2]} 36... Nd8 {[%clk 0:00:36.8]} 37. Nf6 {[%clk
0:00:37.9]} 37... Qa4 {[%clk 0:00:34.4]} 38. h5 {[%clk 0:00:34.5]} 38... Qc2
{[%clk 0:00:33.8]} 39. Nh4 {[%clk 0:00:22.4]} 39... Kf8 {[%clk 0:00:27.8]} 40.
g6 {[%clk 0:00:21.4]} 40... Nxf6 {[%clk 0:00:17.9]} 41. exf6 {[%clk 0:00:21.6]}
41... Bb4 {[%clk 0:00:18.5]} 42. Qh6+ {[%clk 0:00:17.5]} 42... Ke8 {[%clk
0:00:17.8]} 43. g7 {[%clk 0:00:10.5]} 43... Qe4+ {[%clk 0:00:18.4]} 44. f3
{[%clk 0:00:05.9]} 44... Qe2+ {[%clk 0:00:17.1]} 45. Kh3 {[%clk 0:00:06.4]}
45... Qf1+ {[%clk 0:00:14.2]} 46. Kg4 {[%clk 0:00:05.7]} 46... Qg1+ {[%clk
0:00:13.8]} 47. Kh3 {[%clk 0:00:06.2]} 47... Qf1+ {[%clk 0:00:13.7]} 48. Kg4
{[%clk 0:00:05.3]} 48... Qg1+ {[%clk 0:00:14]} 49. Kh3 {[%clk 0:00:05.6]} 49...
Qh1+ {[%clk 0:00:13.6]} 50. Kg4 {[%clk 0:00:05.6]} 50... Qg1+ {[%clk 0:00:14]}
1/2-1/2

[Event "Late-Titled-Tuesday-Blitz-May-14-2024"]
[Site "Chess.com"]
[Date "2024.05.14"]
[Round "2"]
[White "Szparu"]
[Black "alexg2003"]
[Result "1-0"]
[WhiteElo "2866"]
[BlackElo "2590"]
[TimeControl "180+1"]
[EndTime "14:18:39 PDT"]
[Termination "Szparu won on time"]

1. e4 {[%clk 0:03:00.9]} 1... c5 {[%clk 0:02:58.2]} 2. c3 {[%clk 0:03:00.5]}
2... g6 {[%clk 0:02:44.9]} 3. d4 {[%clk 0:02:46.3]} 3... Bg7 {[%clk 0:02:40]} 4.
Nf3 {[%clk 0:02:43.8]} 4... b6 {[%clk 0:02:36.3]} 5. Bd3 {[%clk 0:02:41.7]} 5...
e6 {[%clk 0:02:25.2]} 6. O-O {[%clk 0:02:41.1]} 6... Ne7 {[%clk 0:02:24.9]} 7.
Re1 {[%clk 0:02:40.2]} 7... O-O {[%clk 0:02:20.7]} 8. Nbd2 {[%clk 0:02:39.5]}
8... Bb7 {[%clk 0:02:19.7]} 9. Nf1 {[%clk 0:02:39.1]} 9... d5 {[%clk 0:02:19.3]}
10. e5 {[%clk 0:02:39]} 10... Nbc6 {[%clk 0:02:18.1]} 11. Ng3 {[%clk 0:02:39.3]}
11... Nf5 {[%clk 0:02:18.1]} 12. Nxf5 {[%clk 0:02:34.4]} 12... exf5 {[%clk
0:02:18.5]} 13. Bg5 {[%clk 0:02:32.5]} 13... Qd7 {[%clk 0:02:18.6]} 14. Qd2
{[%clk 0:02:32.7]} 14... Nd8 {[%clk 0:02:11.7]} 15. h4 {[%clk 0:02:16.5]} 15...
h5 {[%clk 0:02:10.6]} 16. Bxd8 {[%clk 0:02:09.4]} 16... Qxd8 {[%clk 0:02:05.6]}
17. Ng5 {[%clk 0:02:09.7]} 17... Bc8 {[%clk 0:02:03.5]} 18. e6 {[%clk
0:02:09.5]} 18... Bxe6 {[%clk 0:02:01.1]} 19. Nxe6 {[%clk 0:02:09.5]} 19... fxe6
{[%clk 0:02:01.7]} 20. Rxe6 {[%clk 0:02:10.1]} 20... cxd4 {[%clk 0:01:58.5]} 21.
Rxg6 {[%clk 0:02:08.1]} 21... Qxh4 {[%clk 0:01:49.9]} 22. cxd4 {[%clk 0:02:02]}
22... Qxd4 {[%clk 0:01:45.5]} 23. Qg5 {[%clk 0:02:00.9]} 23... Rf7 {[%clk
0:01:41.7]} 24. Bf1 {[%clk 0:01:45.9]} 24... Qg4 {[%clk 0:01:17]} 25. Re1 {[%clk
0:01:34.4]} 25... Rc8 {[%clk 0:00:57.6]} 26. Bd3 {[%clk 0:01:31.8]} 26... Kf8
{[%clk 0:00:37.9]} 27. b3 {[%clk 0:01:24.6]} 27... Re8 {[%clk 0:00:20.4]} 28.
Rge6 {[%clk 0:01:14.7]} 28... Rc8 {[%clk 0:00:15.9]} 29. Rc6 {[%clk 0:01:08.3]}
29... Rb8 {[%clk 0:00:10.9]} 30. Qc1 {[%clk 0:01:06.6]} 30... Kg8 {[%clk
0:00:10.6]} 31. Re3 {[%clk 0:01:01]} 31... h4 {[%clk 0:00:10.6]} 32. Ree6 {[%clk
0:00:59.2]} 32... h3 {[%clk 0:00:10.4]} 33. Rg6 {[%clk 0:00:59.2]} 33... Qh4
{[%clk 0:00:09.2]} 34. Rg3 {[%clk 0:00:43.7]} 34... hxg2 {[%clk 0:00:08.3]} 35.
Kxg2 {[%clk 0:00:43.1]} 35... Rbf8 {[%clk 0:00:07.7]} 36. Rcg6 {[%clk
0:00:40.3]} 36... f4 {[%clk 0:00:07.6]} 37. R3g4 {[%clk 0:00:23.4]} 37... f3+
{[%clk 0:00:08.1]} 38. Kg1 {[%clk 0:00:23.7]} 38... Qe7 {[%clk 0:00:08.9]} 39.
Qh6 {[%clk 0:00:19.5]} 39... Re8 {[%clk 0:00:06.5]} 40. Rxg7+ {[%clk 0:00:18.8]}
40... Rxg7 {[%clk 0:00:06.9]} 41. Qh7+ {[%clk 0:00:19.3]} 41... Kf7 {[%clk
0:00:02]} 42. Rxg7+ {[%clk 0:00:18.7]} 42... Kf6 {[%clk 0:00:01.9]} 43. Qg6+
{[%clk 0:00:16]} 43... Ke5 {[%clk 0:00:01]} 44. Rxe7+ {[%clk 0:00:14.7]} 44...
Rxe7 {[%clk 0:00:01.9]} 45. Qg3+ {[%clk 0:00:12.9]} 45... Kd4 {[%clk 0:00:01.5]}
46. Qh4+ {[%clk 0:00:12.3]} 1-0

[Event "Late-Titled-Tuesday-Blitz-May-14-2024"]
[Site "Chess.com"]
[Date "2024.05.14"]
[Round "2"]
[White "jup1978"]
[Black "DreamsAreFake"]
[Result "0-1"]
[WhiteElo "2485"]
[BlackElo "2762"]
[TimeControl "180+1"]
[EndTime "14:18:39 PDT"]
[Termination "DreamsAreFake won by checkmate"]

1. d4 {[%clk 0:03:00.9]} 1... Nf6 {[%clk 0:02:57.4]} 2. Nf3 {[%clk 0:03:00.9]}
2... b6 {[%clk 0:02:54.8]} 3. g3 {[%clk 0:02:57.2]} 3... Bb7 {[%clk 0:02:55.2]}
4. Bg2 {[%clk 0:02:57.3]} 4... g6 {[%clk 0:02:55.9]} 5. c4 {[%clk 0:02:54.5]}
5... Bg7 {[%clk 0:02:56.2]} 6. d5 {[%clk 0:02:52.5]} 6... b5 {[%clk 0:02:56.4]}
7. Nc3 {[%clk 0:02:46]} 7... bxc4 {[%clk 0:02:54.5]} 8. e4 {[%clk 0:02:45.7]}
8... d6 {[%clk 0:02:52.4]} 9. O-O {[%clk 0:02:45.5]} 9... O-O {[%clk 0:02:52.7]}
10. Be3 {[%clk 0:02:41]} 10... c6 {[%clk 0:02:52.6]} 11. Rc1 {[%clk 0:02:31.4]}
11... cxd5 {[%clk 0:02:49.2]} 12. exd5 {[%clk 0:02:32.3]} 12... Nbd7 {[%clk
0:02:47.9]} 13. Nd2 {[%clk 0:02:27.5]} 13... Ne5 {[%clk 0:02:39.6]} 14. Qa4
{[%clk 0:02:21.4]} 14... Qd7 {[%clk 0:02:36.7]} 15. Qxd7 {[%clk 0:02:07]} 15...
Nfxd7 {[%clk 0:02:37.6]} 16. Bd4 {[%clk 0:02:04.8]} 16... Rfc8 {[%clk
0:02:36.6]} 17. Rce1 {[%clk 0:01:58.4]} 17... Bf6 {[%clk 0:02:08.7]} 18. Nde4
{[%clk 0:01:41.5]} 18... Nf3+ {[%clk 0:01:55.4]} 19. Bxf3 {[%clk 0:01:37.7]}
19... Bxd4 {[%clk 0:01:56.3]} 20. Rd1 {[%clk 0:01:35.2]} 20... Ne5 {[%clk
0:01:54.3]} 21. Be2 {[%clk 0:01:24.9]} 21... Bb6 {[%clk 0:01:54.3]} 22. Na4
{[%clk 0:01:21]} 22... Ba5 {[%clk 0:01:25.4]} 23. f4 {[%clk 0:01:12.5]} 23...
Nd3 {[%clk 0:01:25.7]} 24. Bxd3 {[%clk 0:00:53.8]} 24... cxd3 {[%clk 0:01:26.6]}
25. Nac3 {[%clk 0:00:51]} 25... Ba6 {[%clk 0:01:26.6]} 26. Rf3 {[%clk
0:00:49.8]} 26... Rab8 {[%clk 0:01:24.7]} 27. Na4 {[%clk 0:00:38]} 27... Rc2
{[%clk 0:01:13.8]} 28. Rf2 {[%clk 0:00:34.4]} 28... Rb4 {[%clk 0:01:12.4]} 29.
Nec3 {[%clk 0:00:29.2]} 29... Bb6 {[%clk 0:01:11.3]} 30. Nxb6 {[%clk 0:00:27.6]}
30... Rxf2 {[%clk 0:01:11.5]} 31. Kxf2 {[%clk 0:00:25.4]} 31... Rxb2+ {[%clk
0:01:12.1]} 32. Ke3 {[%clk 0:00:24.3]} 32... axb6 {[%clk 0:01:11.7]} 33. Rb1
{[%clk 0:00:22.6]} 33... Rxb1 {[%clk 0:01:07.1]} 34. Nxb1 {[%clk 0:00:23.5]}
34... Bc4 {[%clk 0:01:07.5]} 35. a3 {[%clk 0:00:21.6]} 35... Kg7 {[%clk
0:00:58.7]} 36. Nd2 {[%clk 0:00:21.1]} 36... Bxd5 {[%clk 0:00:59.1]} 37. Kxd3
{[%clk 0:00:21]} 37... Kf6 {[%clk 0:00:59.8]} 38. Nf1 {[%clk 0:00:17.5]} 38...
Bc6 {[%clk 0:00:57.7]} 39. Ne3 {[%clk 0:00:17.1]} 39... h5 {[%clk 0:00:58.4]}
40. Kd4 {[%clk 0:00:17.3]} 40... e5+ {[%clk 0:00:55.2]} 41. fxe5+ {[%clk
0:00:16.6]} 41... dxe5+ {[%clk 0:00:56.1]} 42. Kd3 {[%clk 0:00:16.4]} 42... Kg5
{[%clk 0:00:54.5]} 43. Nc2 {[%clk 0:00:12]} 43... h4 {[%clk 0:00:54.2]} 44. Ke3
{[%clk 0:00:11.6]} 44... f5 {[%clk 0:00:52.7]} 45. Kf2 {[%clk 0:00:11.3]} 45...
Kg4 {[%clk 0:00:49.4]} 46. Nb4 {[%clk 0:00:10.8]} 46... Bb7 {[%clk 0:00:48.9]}
47. gxh4 {[%clk 0:00:10.1]} 47... Kxh4 {[%clk 0:00:48.8]} 48. Nd3 {[%clk
0:00:10.8]} 48... e4 {[%clk 0:00:48.8]} 49. Ne5 {[%clk 0:00:08.5]} 49... g5
{[%clk 0:00:48.1]} 50. Nc4 {[%clk 0:00:07.8]} 50... f4 {[%clk 0:00:40.8]} 51.
Nxb6 {[%clk 0:00:07]} 51... e3+ {[%clk 0:00:41.4]} 52. Kg1 {[%clk 0:00:06.2]}
52... f3 {[%clk 0:00:39.1]} 53. Nc4 {[%clk 0:00:06.6]} 53... f2+ {[%clk
0:00:39]} 54. Kf1 {[%clk 0:00:05.6]} 54... Ba6 {[%clk 0:00:39.9]} 55. Kg2 {[%clk
0:00:01.4]} 55... Bxc4 {[%clk 0:00:39.5]} 56. a4 {[%clk 0:00:01.8]} 56... f1=Q#
{[%clk 0:00:39.9]} 0-1

[Event "Late-Titled-Tuesday-Blitz-May-14-2024"]
[Site "Chess.com"]
[Date "2024.05.14"]
[Round "2"]
[White "patzer-reloaded"]
[Black "Maikrosoft63"]
[Result "0-1"]
[WhiteElo "2383"]
[BlackElo "2622"]
[TimeControl "180+1"]
[EndTime "14:18:39 PDT"]
[Termination "Maikrosoft63 won on time"]

1. d3 {[%clk 0:03:00.9]} 1... g6 {[%clk 0:02:54.6]} 2. Nf3 {[%clk 0:03:00.2]}
2... Bg7 {[%clk 0:02:55]} 3. g3 {[%clk 0:03:00.9]} 3... d5 {[%clk 0:02:55.2]} 4.
Bg2 {[%clk 0:03:01.6]} 4... Nf6 {[%clk 0:02:55]} 5. O-O {[%clk 0:03:02.5]} 5...
O-O {[%clk 0:02:55.4]} 6. c4 {[%clk 0:03:03.2]} 6... d4 {[%clk 0:02:54.8]} 7. b4
{[%clk 0:03:02.5]} 7... c6 {[%clk 0:02:49.3]} 8. Bb2 {[%clk 0:02:58]} 8... c5
{[%clk 0:02:42]} 9. Nbd2 {[%clk 0:02:28.6]} 9... Nfd7 {[%clk 0:02:29.4]} 10. Nb3
{[%clk 0:02:09.5]} 10... Qc7 {[%clk 0:02:27.2]} 11. b5 {[%clk 0:01:46]} 11... e5
{[%clk 0:02:22.6]} 12. a4 {[%clk 0:01:44.4]} 12... a5 {[%clk 0:01:49.3]} 13. Rb1
{[%clk 0:00:55.7]} 13... Ra7 {[%clk 0:01:45.5]} 14. e3 {[%clk 0:00:55.1]} 14...
b6 {[%clk 0:01:45.2]} 15. exd4 {[%clk 0:00:54.7]} 15... exd4 {[%clk 0:01:45]}
16. Bc1 {[%clk 0:00:51]} 16... Ne5 {[%clk 0:01:37.4]} 17. Bf4 {[%clk 0:00:48.2]}
17... Nbd7 {[%clk 0:01:37.7]} 18. Re1 {[%clk 0:00:43]} 18... Bb7 {[%clk
0:01:36.1]} 19. Rb2 {[%clk 0:00:38.6]} 19... Re8 {[%clk 0:01:10.5]} 20. Rbe2
{[%clk 0:00:33.8]} 20... f6 {[%clk 0:01:10.8]} 21. Nbd2 {[%clk 0:00:29.8]} 21...
Raa8 {[%clk 0:01:05.5]} 22. Bxe5 {[%clk 0:00:21.1]} 22... Nxe5 {[%clk
0:00:55.9]} 23. Nxe5 {[%clk 0:00:20.8]} 23... Bxg2 {[%clk 0:00:51.7]} 24. Kxg2
{[%clk 0:00:21.7]} 24... fxe5 {[%clk 0:00:46.3]} 25. Ne4 {[%clk 0:00:21.6]}
25... Rf8 {[%clk 0:00:46.2]} 26. Qd2 {[%clk 0:00:21.3]} 26... Rf7 {[%clk
0:00:46.1]} 27. Qg5 {[%clk 0:00:16.1]} 27... Raf8 {[%clk 0:00:44.7]} 28. Qg4
{[%clk 0:00:16.1]} 28... Qe7 {[%clk 0:00:41.5]} 29. h4 {[%clk 0:00:11.5]} 29...
Rf5 {[%clk 0:00:40.8]} 30. Ng5 {[%clk 0:00:10.3]} 30... Bh6 {[%clk 0:00:35.2]}
31. Nh3 {[%clk 0:00:09.4]} 31... Qb7+ {[%clk 0:00:33.9]} 32. Qe4 {[%clk
0:00:09.3]} 32... Qf7 {[%clk 0:00:33.4]} 33. Qd5 {[%clk 0:00:08.5]} 33... Qxd5+
{[%clk 0:00:32.1]} 34. cxd5 {[%clk 0:00:08.4]} 34... Bg7 {[%clk 0:00:32.2]} 35.
Ng5 {[%clk 0:00:07.2]} 35... Rd8 {[%clk 0:00:31.8]} 36. f4 {[%clk 0:00:02.1]}
36... exf4 {[%clk 0:00:30.7]} 37. Re8+ {[%clk 0:00:02.5]} 37... Rf8 {[%clk
0:00:28.3]} 38. Rxf8+ {[%clk 0:00:00.9]} 38... Bxf8 {[%clk 0:00:27.6]} 39. Ne6
{[%clk 0:00:01.8]} 39... Rxd5 {[%clk 0:00:27.2]} 40. Nxf4 {[%clk 0:00:02.7]}
40... Rd8 {[%clk 0:00:24.6]} 41. Re6 {[%clk 0:00:03.4]} 41... Bd6 {[%clk
0:00:22.9]} 42. Nd5 {[%clk 0:00:02.4]} 42... c4 {[%clk 0:00:21.2]} 43. dxc4
{[%clk 0:00:02]} 43... Bc5 {[%clk 0:00:20.1]} 44. Kf3 {[%clk 0:00:01.2]} 44...
d3 {[%clk 0:00:16.2]} 0-1

[Event "Late-Titled-Tuesday-Blitz-May-14-2024"]
[Site "Chess.com"]
[Date "2024.05.14"]
[Round "2"]
[White "KuzubovYuriy"]
[Black "TheKnightOfBosnia"]
[Result "1-0"]
[WhiteElo "2927"]
[BlackElo "2634"]
[TimeControl "180+1"]
[EndTime "14:18:40 PDT"]
[Termination "KuzubovYuriy won by resignation"]

1. d4 {[%clk 0:03:00.9]} 1... Nf6 {[%clk 0:02:59.3]} 2. c4 {[%clk 0:03:01.3]}
2... e6 {[%clk 0:02:59.5]} 3. Nf3 {[%clk 0:03:01.2]} 3... Bb4+ {[%clk
0:02:58.6]} 4. Bd2 {[%clk 0:03:01.2]} 4... a5 {[%clk 0:02:57.5]} 5. g3 {[%clk
0:03:00.9]} 5... O-O {[%clk 0:02:55.8]} 6. Bg2 {[%clk 0:03:01]} 6... d5 {[%clk
0:02:56.3]} 7. a3 {[%clk 0:03:00.6]} 7... Bxd2+ {[%clk 0:02:54.2]} 8. Nbxd2
{[%clk 0:02:56.7]} 8... c6 {[%clk 0:02:46.6]} 9. O-O {[%clk 0:02:56.8]} 9...
Nbd7 {[%clk 0:02:45.5]} 10. Qc2 {[%clk 0:02:56.6]} 10... Qe7 {[%clk 0:02:41.5]}
11. Rfe1 {[%clk 0:02:56.1]} 11... e5 {[%clk 0:02:35.3]} 12. cxd5 {[%clk
0:02:52.4]} 12... cxd5 {[%clk 0:02:21.5]} 13. dxe5 {[%clk 0:02:36.3]} 13... Nxe5
{[%clk 0:02:22.4]} 14. Nxe5 {[%clk 0:02:36.8]} 14... Qxe5 {[%clk 0:02:22.6]} 15.
Nf3 {[%clk 0:02:37.1]} 15... Qe4 {[%clk 0:02:12.7]} 16. Rac1 {[%clk 0:02:34.5]}
16... Qxc2 {[%clk 0:01:57.8]} 17. Rxc2 {[%clk 0:02:34.6]} 17... Bf5 {[%clk
0:01:58.7]} 18. Rc7 {[%clk 0:02:31.8]} 18... Rfc8 {[%clk 0:01:59.3]} 19. Rxb7
{[%clk 0:02:26.7]} 19... Rcb8 {[%clk 0:01:58.8]} 20. Rxb8+ {[%clk 0:02:26.5]}
20... Rxb8 {[%clk 0:01:59.5]} 21. Nd4 {[%clk 0:02:26.6]} 21... Bg6 {[%clk
0:01:53.5]} 22. b3 {[%clk 0:02:26.7]} 22... Rc8 {[%clk 0:01:48.2]} 23. e3 {[%clk
0:02:21.6]} 23... Rc3 {[%clk 0:01:34.8]} 24. h3 {[%clk 0:02:19.2]} 24... Kf8
{[%clk 0:01:31]} 25. Ra1 {[%clk 0:02:17.1]} 25... Be4 {[%clk 0:01:19.1]} 26. b4
{[%clk 0:02:02.1]} 26... a4 {[%clk 0:01:12.2]} 27. Bf1 {[%clk 0:01:58.1]} 27...
Bd3 {[%clk 0:01:06.4]} 28. b5 {[%clk 0:01:44.2]} 28... Bxf1 {[%clk 0:00:48.9]}
29. Kxf1 {[%clk 0:01:45.1]} 29... Nd7 {[%clk 0:00:49.2]} 30. Ke2 {[%clk
0:01:37.4]} 30... Nb6 {[%clk 0:00:45.4]} 31. Kd2 {[%clk 0:01:32.2]} 31... Rc5
{[%clk 0:00:35.2]} 32. Kd3 {[%clk 0:01:27]} 32... Ke7 {[%clk 0:00:32.7]} 33. Rb1
{[%clk 0:01:22.5]} 33... g6 {[%clk 0:00:31.5]} 34. Ne2 {[%clk 0:01:20.9]} 34...
Kd6 {[%clk 0:00:29.7]} 35. Rb4 {[%clk 0:01:14.6]} 35... Nc4 {[%clk 0:00:19]} 36.
b6 {[%clk 0:01:02.6]} 36... Rc8 {[%clk 0:00:17.6]} 37. Nc3 {[%clk 0:00:56]}
37... Rb8 {[%clk 0:00:14.3]} 38. Nxa4 {[%clk 0:00:52.1]} 38... Nxa3 {[%clk
0:00:14.4]} 39. e4 {[%clk 0:00:43.1]} 39... dxe4+ {[%clk 0:00:11.8]} 40. Kxe4
{[%clk 0:00:43.5]} 40... Nc2 {[%clk 0:00:11.1]} 41. Rb2 {[%clk 0:00:34.7]} 41...
Na3 {[%clk 0:00:09.7]} 42. Kf4 {[%clk 0:00:20.9]} 42... Kc6 {[%clk 0:00:09]} 43.
Kg5 {[%clk 0:00:19.6]} 43... f5 {[%clk 0:00:08]} 44. Kh6 {[%clk 0:00:18.4]}
44... Rb7 {[%clk 0:00:08.5]} 45. Rb4 {[%clk 0:00:16.2]} 45... Nb5 {[%clk
0:00:07.5]} 46. Rc4+ {[%clk 0:00:15.1]} 46... Kd6 {[%clk 0:00:08]} 47. h4 {[%clk
0:00:13.9]} 47... Kd5 {[%clk 0:00:07.8]} 48. Rc5+ {[%clk 0:00:12.6]} 1-0

[Event "Late-Titled-Tuesday-Blitz-May-14-2024"]
[Site "Chess.com"]
[Date "2024.05.14"]
[Round "2"]
[White "NCchamp"]
[Black "LLRChess"]
[Result "0-1"]
[WhiteElo "2308"]
[BlackElo "2527"]
[TimeControl "180+1"]
[EndTime "14:18:41 PDT"]
[Termination "LLRChess won on time"]

1. d4 {[%clk 0:02:59.7]} 1... d5 {[%clk 0:02:59.9]} 2. c4 {[%clk 0:02:59]} 2...
c6 {[%clk 0:03:00.2]} 3. cxd5 {[%clk 0:02:56.6]} 3... cxd5 {[%clk 0:03:01.1]} 4.
Nc3 {[%clk 0:02:57.4]} 4... Nc6 {[%clk 0:03:00.7]} 5. Nf3 {[%clk 0:02:58.2]}
5... e6 {[%clk 0:03:00.5]} 6. Bf4 {[%clk 0:02:58.4]} 6... Bd6 {[%clk 0:03:00.8]}
7. Bxd6 {[%clk 0:02:54.6]} 7... Qxd6 {[%clk 0:03:01.7]} 8. e3 {[%clk 0:02:55.2]}
8... Nge7 {[%clk 0:03:02]} 9. Bd3 {[%clk 0:02:47.9]} 9... O-O {[%clk 0:03:02]}
10. O-O {[%clk 0:02:48.1]} 10... Bd7 {[%clk 0:03:01.4]} 11. a3 {[%clk
0:02:47.5]} 11... Rac8 {[%clk 0:02:59.1]} 12. Qd2 {[%clk 0:02:42.9]} 12... Na5
{[%clk 0:02:53.9]} 13. Qe2 {[%clk 0:02:22.4]} 13... Nc4 {[%clk 0:02:50]} 14. e4
{[%clk 0:02:09.2]} 14... b5 {[%clk 0:02:47.1]} 15. e5 {[%clk 0:02:06.2]} 15...
Qb6 {[%clk 0:02:44.9]} 16. Bxh7+ {[%clk 0:02:02.6]} 16... Kxh7 {[%clk
0:02:43.9]} 17. Ng5+ {[%clk 0:02:02.5]} 17... Kh6 {[%clk 0:02:28.3]} 18. Qg4
{[%clk 0:01:59]} 18... Nf5 {[%clk 0:02:28.2]} 19. f4 {[%clk 0:01:16.7]} 19...
Qxd4+ {[%clk 0:02:19.4]} 20. Kh1 {[%clk 0:01:16.2]} 20... Rh8 {[%clk 0:01:55]}
21. Nxf7+ {[%clk 0:01:01.5]} 21... Kh7 {[%clk 0:01:55.3]} 22. Qh5+ {[%clk
0:00:48.8]} 22... Kg8 {[%clk 0:01:44.2]} 23. Nxh8 {[%clk 0:00:47.2]} 23... Be8
{[%clk 0:01:39.2]} 24. Ng6 {[%clk 0:00:46.8]} 24... Nxb2 {[%clk 0:01:27.4]} 25.
Ne2 {[%clk 0:00:46.8]} 25... Qd3 {[%clk 0:01:18.4]} 26. Ng3 {[%clk 0:00:40.9]}
26... Nxg3+ {[%clk 0:01:17.7]} 27. hxg3 {[%clk 0:00:41.8]} 27... Bxg6 {[%clk
0:01:17.4]} 28. Qh4 {[%clk 0:00:37]} 28... Kf7 {[%clk 0:01:09.6]} 29. g4 {[%clk
0:00:37.3]} 29... Be4 {[%clk 0:00:57.9]} 30. f5 {[%clk 0:00:36.3]} 30... Rc2
{[%clk 0:00:51.3]} 31. Qh5+ {[%clk 0:00:27.4]} 31... Ke7 {[%clk 0:00:48.7]} 32.
f6+ {[%clk 0:00:22.4]} 32... gxf6 {[%clk 0:00:48.8]} 33. exf6+ {[%clk
0:00:14.4]} 33... Kd6 {[%clk 0:00:49.1]} 34. Qh2+ {[%clk 0:00:13.5]} 34... e5
{[%clk 0:00:43.3]} 35. f7 {[%clk 0:00:13.8]} 35... Bxg2+ {[%clk 0:00:32.3]} 36.
Qxg2 {[%clk 0:00:13.7]} 36... Qh7+ {[%clk 0:00:32]} 37. Kg1 {[%clk 0:00:14.2]}
37... Rxg2+ {[%clk 0:00:30.8]} 38. Kxg2 {[%clk 0:00:15.1]} 38... Qe4+ {[%clk
0:00:30.3]} 39. Kh3 {[%clk 0:00:08.6]} 39... Qe3+ {[%clk 0:00:28.3]} 40. Kh4
{[%clk 0:00:08.9]} 40... Qh6+ {[%clk 0:00:28.3]} 41. Kg3 {[%clk 0:00:08.9]}
41... Qf8 {[%clk 0:00:28.5]} 42. Rf6+ {[%clk 0:00:04.5]} 42... Ke7 {[%clk
0:00:26.4]} 43. Raf1 {[%clk 0:00:05.4]} 43... Nd3 {[%clk 0:00:26.5]} 44. Rg6
{[%clk 0:00:04.7]} 44... Nf4 {[%clk 0:00:26.1]} 0-1